bitfinex/quotes_SOLUSD_20250929
["timestamp","ask_amount","ask_price","bid_price","bid_amount"]
[1759121796243,29.19232616,210.62,210.61,0.69]
[1759121796750,29.19232616,210.62,210.59,0.69]
[1759121796953,26.0,210.62,210.6,5.43831099]
[1759121799550,3.0865682,210.64,210.57,16.62155101]
[1759121799750,3.0865682,210.64,210.61,0.69]
[1759121799751,3.19293704,210.63,210.61,0.69]
[1759121799934,3.19293704,210.62,210.61,0.69]
[1759121800137,2.3665682,210.64,210.61,0.69]
[1759121800454,3.19304611,210.63,210.61,0.69]
[1759121800757,2.3665682,210.64,210.61,0.69]
[1759121800939,3.19312503,210.63,210.61,0.69]
[1759121801142,2.3665682,210.64,210.61,0.69]
[1759121801341,3.19311241,210.63,210.61,0.69]
[1759121801545,2.3665682,210.64,210.61,0.69]
[1759121801827,3.19311241,210.63,210.61,0.69]
[1759121802027,2.3665682,210.64,210.61,0.69]
[1759121802435,3.19334449,210.63,210.61,0.69]
[1759121802735,2.3665682,210.64,210.61,0.69]
[1759121803049,3.91323025,210.63,210.59,0.69]
[1759121803347,2.3665682,210.64,210.59,0.69]
[1759121803550,3.1934737,210.63,210.59,0.69]
[1759121803856,3.0865682,210.64,210.59,0.69]
[1759121804153,3.9125529,210.63,210.6,4.74833808]
[1759121804453,0.72,210.63,210.6,4.74833808]
[1759121805247,0.72,210.63,210.57,16.62155101]
[1759121805548,2.3665682,210.64,210.6,0.69]
[1759121805852,3.19284023,210.63,210.6,0.69]
[1759121806046,3.0865682,210.64,210.6,0.69]
[1759121806345,3.19300543,210.63,210.6,0.69]
[1759121806548,3.0865682,210.64,210.6,0.69]
[1759121806842,3.19460005,210.63,210.6,0.69]
[1759121807043,3.0865682,210.64,210.6,0.69]
[1759121807252,3.19466957,210.63,210.6,0.69]
[1759121807440,3.0865682,210.64,210.6,0.69]
[1759121807751,3.19486173,210.63,210.6,0.69]
[1759121807938,0.72,210.63,210.6,0.69]
[1759121808356,2.3665682,210.64,210.59,4.74840168]
[1759121808553,3.19509891,210.63,210.61,0.69]
[1759121808852,2.3665682,210.64,210.61,0.69]
[1759121809055,3.19478891,210.63,210.6,5.43831591]
[1759121809353,3.0865682,210.64,210.61,0.69]
[1759121809529,3.19480625,210.63,210.61,0.69]
[1759121809729,2.3665682,210.64,210.61,0.69]
[1759121809930,3.19472355,210.63,210.59,0.69]
[1759121810255,3.19472355,210.62,210.6,0.69]
[1759121810432,0.72,210.63,210.6,0.69]
[1759121810754,3.19490416,210.62,210.6,0.69]
[1759121810948,0.72,210.63,210.6,0.69]
[1759121811150,3.19538597,210.62,210.6,0.69]
[1759121811351,0.72,210.63,210.6,0.69]
[1759121811548,3.1955577,210.62,210.6,0.69]
[1759121811876,2.3665682,210.64,210.61,0.7]
[1759121812054,3.19538971,210.63,210.61,0.7]
[1759121812255,3.19538971,210.62,210.61,0.7]
[1759121813834,3.19538971,210.62,210.6,0.7]
[1759121814059,2.3665682,210.64,210.61,0.7]
[1759121814357,3.19636702,210.63,210.61,0.7]
[1759121814659,3.19636702,210.62,210.61,0.7]
[1759121814848,3.19636702,210.62,210.59,5.4484848]
[1759121815046,3.0465682,210.64,210.6,0.7]
[1759121815261,3.19636619,210.63,210.6,0.7]
[1759121815557,3.19636619,210.62,210.6,0.7]
[1759121815752,3.0465682,210.64,210.6,0.7]
[1759121816060,3.19664982,210.63,210.6,0.7]
[1759121816238,3.19664982,210.62,210.6,0.7]
[1759121816433,3.0465682,210.64,210.6,0.7]
[1759121816633,3.19665111,210.63,210.6,0.7]
[1759121816836,3.19665111,210.62,210.61,0.7]
[1759121817262,3.19665111,210.62,210.59,4.7484848]
[1759121817437,3.0465682,210.64,210.6,0.7]
[1759121817642,3.19714398,210.63,210.6,0.7]
[1759121817958,3.19714398,210.62,210.61,0.7]
[1759121818260,3.19714398,210.62,210.6,5.44829889]
[1759121818436,14.91910464,210.64,210.6,5.44829889]
[1759121818637,3.19752966,210.63,210.6,5.44829889]
[1759121818851,3.19752966,210.62,210.6,5.44829889]
[1759121819055,12.55253644,210.64,210.6,5.44829889]
[1759121819338,3.19746027,210.63,210.6,5.44829889]
[1759121819547,3.19746027,210.62,210.6,5.44829889]
[1759121819747,12.55253644,210.64,210.6,5.44829889]
[1759121820065,3.19759369,210.63,210.6,5.44829889]
[1759121820234,3.19759369,210.62,210.6,5.44829889]
[1759121820435,12.55253644,210.64,210.6,5.44829889]
[1759121820637,12.55253644,210.64,210.57,11.87253644]
[1759121820638,3.1977234,210.63,210.57,16.62155101]
[1759121820937,3.1977234,210.62,210.58,0.7]
[1759121821139,12.55253644,210.64,210.58,0.7]
[1759121821350,3.1978642,210.63,210.58,0.7]
[1759121821644,3.1978642,210.62,210.59,4.74856355]
[1759121821846,11.87253644,210.64,210.6,0.7]
[1759121822148,3.19789283,210.63,210.6,0.7]
[1759121822351,3.19789283,210.62,210.61,0.7]
[1759121822538,3.19789283,210.62,210.59,16.61997244]
[1759121822746,26.0,210.65,210.59,16.61997244]
[1759121823057,3.19800813,210.64,210.59,52.89997244]
[1759121823253,3.19800813,210.63,210.6,36.98]
[1759121823442,26.0,210.65,210.61,0.7]
[1759121823759,3.19802843,210.64,210.61,0.7]
[1759121823961,3.19802843,210.63,210.62,4.74788719]
[1759121824151,3.19802843,210.63,210.62,5.44788719]
[1759121827863,14.278575,210.66,210.62,17.31760516]
[1759121828055,3.19854867,210.65,210.64,4.74743638]
[1759121828462,0.68,210.69,210.64,5.44743638]
[1759121828660,3.19882748,210.68,210.64,4.74743638]
[1759121828868,3.19882748,210.67,210.65,0.7]
[1759121829174,14.95585715,210.7,210.65,0.7]
[1759121829375,3.1986426,210.69,210.65,0.7]
[1759121829668,3.1986426,210.68,210.66,0.7]
[1759121829871,3.1986426,210.67,210.66,0.7]
[1759121830248,3.1986426,210.67,210.66,5.44698566]
[1759121831470,0.68,210.7,210.66,5.44698566]
[1759121831769,3.19797683,210.69,210.66,5.44698566]
[1759121831972,3.19797683,210.68,210.66,5.44698566]
[1759121832271,14.99585714,210.7,210.66,5.44698566]
[1759121832452,3.91930292,210.69,210.66,5.44698566]
[1759121832753,3.19930292,210.68,210.66,5.44698566]
[1759121832951,0.72,210.69,210.66,5.44698566]
[1759121833172,3.19946355,210.68,210.66,5.44698566]
[1759121833371,0.72,210.69,210.66,5.44698566]
[1759121833674,3.19908667,210.68,210.66,4.74698566]
[1759121833967,3.19908667,210.67,210.66,4.74698566]
[1759121834168,3.19908667,210.67,210.65,0.69]
[1759121834397,0.72,210.69,210.65,5.43718427]
[1759121834544,3.91877333,210.68,210.65,5.43718427]
[1759121834750,3.19877333,210.67,210.65,5.43718427]
[1759121834950,0.72,210.68,210.65,5.43718427]
[1759121835164,3.19877247,210.67,210.65,5.43718427]
[1759121835451,0.72,210.68,210.65,5.43718427]
[1759121835651,3.1984864,210.67,210.65,5.43718427]
[1759121835871,0.72,210.68,210.65,5.43718427]
[1759121836071,3.19848311,210.67,210.65,5.43718427]
[1759121836268,14.27585714,210.7,210.62,4.74788719]
[1759121836579,0.72,210.66,210.62,4.74788719]
[1759121836751,0.72,210.65,210.62,4.74788719]
[1759121839293,0.72,210.65,210.62,5.43788719]
[1759121839456,3.19881344,210.64,210.59,16.61997244]
[1759121839654,0.72,210.65,210.6,0.69]
[1759121839854,3.19869191,210.64,210.61,0.69]
[1759121840165,0.72,210.64,210.6,0.69]
[1759121840776,0.72,210.64,210.61,4.74811262]
[1759121842980,0.72,210.64,210.6,5.43830549]
[1759121843356,3.20003853,210.63,210.6,5.43830549]
[1759121843556,0.71,210.62,210.57,5.39898256]
[1759121843757,0.71,210.61,210.57,4.74898256]
[1759121843958,0.71,210.6,210.57,4.74898256]
[1759121844681,0.71,210.59,210.56,4.8492213]
[1759121844854,9.49383044,210.62,210.56,5.4992213]
[1759121844855,0.71,210.6,210.56,5.4992213]
[1759121845462,0.71,210.6,210.56,4.8492213]
[1759121845665,0.71,210.6,210.56,5.4992213]
[1759121846677,0.71,210.6,210.57,0.65]
[1759121848886,0.71,210.59,210.56,0.1]
[1759121849791,0.71,210.59,210.56,0.75]
[1759121849971,14.28265372,210.6,210.56,5.4991964]
[1759121850169,14.99265372,210.6,210.56,5.4991964]
[1759121850583,0.71,210.6,210.56,5.4991964]
[1759121850885,14.28265372,210.61,210.57,0.65]
[1759121851188,3.19689591,210.6,210.57,0.65]
[1759121851402,0.71,210.61,210.57,0.65]
[1759121851575,8.04576693,210.6,210.57,0.65]
[1759121851777,4.8491964,210.6,210.57,0.65]
[1759121851986,0.71,210.59,210.56,0.1]
[1759121852188,5.5591964,210.6,210.56,5.49922633]
[1759121852490,4.8491964,210.6,210.56,5.49922633]
[1759121852684,0.71,210.59,210.56,5.49922633]
[1759121852988,5.5591964,210.6,210.56,5.49922633]
[1759121854295,4.8491964,210.6,210.56,5.49922633]
[1759121854473,5.5591964,210.6,210.56,5.49922633]
[1759121855787,4.8491964,210.6,210.56,5.49922633]
[1759121855987,0.71,210.59,210.56,5.49922633]
[1759121856190,4.8491964,210.6,210.56,5.49922633]
[1759121856493,5.5591964,210.6,210.56,5.49922633]
[1759121856792,5.5591964,210.6,210.56,4.84922633]
[1759121857093,5.5591964,210.6,210.57,0.65]
[1759121857693,5.5591964,210.6,210.56,4.84922633]
[1759121857898,5.5591964,210.6,210.57,0.65]
[1759121860092,0.71,210.6,210.57,0.65]
[1759121864421,0.71,210.6,210.57,5.39898591]
[1759121865509,4.84922633,210.61,210.58,0.65]
[1759121866301,5.55922633,210.61,210.57,4.74898591]
[1759121866500,5.55922633,210.61,210.57,5.39898591]
[1759121866804,5.55922633,210.61,210.58,0.65]
[1759121868910,5.55922633,210.61,210.57,4.74898591]
[1759121869083,5.55922633,210.61,210.57,5.39898591]
[1759121869589,0.71,210.6,210.57,5.39898591]
[1759121869786,4.84922633,210.61,210.57,4.74898591]
[1759121870005,4.84922633,210.61,210.58,0.65]
[1759121870506,5.55922633,210.61,210.58,0.65]
[1759121871612,5.55922633,210.61,210.57,4.74898591]
[1759121871800,0.68,210.6,210.57,5.42898591]
[1759121872188,0.68,210.6,210.57,0.68]
[1759121872388,4.84922633,210.61,210.58,0.68]
[1759121872601,5.52922633,210.61,210.57,0.68]
[1759121872802,4.84922633,210.61,210.57,0.68]
[1759121873111,0.68,210.6,210.57,0.68]
[1759121874215,0.68,210.6,210.57,5.42894831]
[1759121875507,4.84922633,210.61,210.58,0.68]
[1759121875805,4.84922633,210.61,210.59,0.68]
[1759121876496,5.52922633,210.61,210.57,5.42894831]
[1759121877198,5.52922633,210.61,210.58,0.68]
[1759121878213,3.19427755,210.6,210.58,0.68]
[1759121878391,5.52922633,210.61,210.58,0.68]
[1759121878586,3.19430874,210.6,210.58,0.68]
[1759121878783,5.52922633,210.61,210.58,0.68]
[1759121878987,3.19424013,210.6,210.58,0.68]
[1759121879202,5.52922633,210.61,210.58,0.68]
[1759121879424,3.19484955,210.6,210.58,0.68]
[1759121879601,5.52922633,210.61,210.58,0.68]
[1759121879801,3.19484955,210.6,210.58,0.68]
[1759121880113,5.52922633,210.61,210.58,0.68]
[1759121880290,3.19484955,210.6,210.58,0.68]
[1759121880491,5.52922633,210.61,210.58,0.68]
[1759121880692,3.19574208,210.6,210.58,0.68]
[1759121880892,5.52922633,210.61,210.58,0.68]
[1759121881094,3.19541128,210.6,210.58,0.68]
[1759121881301,5.52922633,210.61,210.57,5.42894831]
[1759121881501,3.19598256,210.6,210.57,5.42894831]
[1759121881708,5.52922633,210.61,210.57,5.42894831]
[1759121881909,3.19605461,210.6,210.57,5.42894831]
[1759121882113,5.52922633,210.61,210.57,5.42894831]
[1759121882315,3.19687243,210.6,210.57,5.42894831]
[1759121882614,3.19687243,210.59,210.57,5.42894831]
[1759121882795,5.52922633,210.61,210.57,5.42894831]
[1759121882995,3.19694205,210.6,210.57,5.42894831]
[1759121883299,3.19694205,210.59,210.57,5.42894831]
[1759121883492,5.52922633,210.61,210.57,5.42894831]
[1759121883718,3.19729896,210.6,210.57,5.42894831]
[1759121883903,3.19729896,210.59,210.57,5.42894831]
[1759121884103,5.52922633,210.61,210.57,5.42894831]
[1759121884417,3.19700601,210.6,210.57,5.42894831]
[1759121884615,3.19700601,210.59,210.57,5.42894831]
[1759121884813,5.52922633,210.61,210.57,5.42894831]
[1759121885014,3.19738274,210.6,210.57,5.42894831]
[1759121885215,3.19738274,210.59,210.57,5.42894831]
[1759121885415,5.52922633,210.61,210.57,5.42894831]
[1759121885617,3.19803073,210.6,210.57,5.42894831]
[1759121885804,3.19803073,210.59,210.57,5.42894831]
[1759121886101,5.52922633,210.61,210.57,5.42894831]
[1759121886301,3.19819606,210.6,210.57,5.42894831]
[1759121886520,3.19819606,210.59,210.57,5.42894831]
[1759121886722,5.52922633,210.61,210.57,5.42894831]
[1759121887024,3.19869124,210.6,210.57,5.42894831]
[1759121887316,3.19869124,210.59,210.57,5.42894831]
[1759121887524,3.19869124,210.58,210.57,5.42894831]
[1759121904036,3.91869124,210.58,210.56,0.1]
[1759121904224,3.19869124,210.57,210.56,0.1]
[1759121905111,3.19869124,210.57,210.56,4.84921794]
[1759121906210,3.19869124,210.57,210.56,0.1]
[1759121906727,3.19869124,210.57,210.56,0.77]
[1759121908130,3.19869124,210.57,210.56,5.51924012]
[1759121910135,3.19869124,210.57,210.56,4.84924012]
[1759121910431,3.19869124,210.57,210.56,0.1]
[1759121910628,3.91869124,210.57,210.56,0.1]
[1759121912539,3.19869124,210.57,210.56,0.1]
[1759121912832,3.19869124,210.57,210.56,5.51924012]
[1759121913708,4.74938573,210.61,210.56,5.51924012]
[1759121913927,3.1991772,210.6,210.57,5.41887093]
[1759121914232,3.1991772,210.59,210.58,0.67]
[1759121915230,3.1991772,210.59,210.57,4.74887093]
[1759121915539,5.46938573,210.61,210.57,5.41887093]
[1759121915739,3.1984744,210.6,210.57,5.41887093]
[1759121916040,3.1984744,210.59,210.57,5.41887093]
[1759121916236,5.46938573,210.61,210.57,5.41887093]
[1759121916439,3.19812461,210.6,210.58,0.67]
[1759121916732,3.19812461,210.59,210.58,5.41878905]
[1759121918041,3.19812461,210.59,210.56,11.97304039]
[1759121918042,3.91812461,210.59,210.56,0.1]
[1759121918337,3.91812461,210.58,210.56,0.1]
[1759121918535,3.19812461,210.57,210.56,0.1]
[1759121919032,3.91697725,210.57,210.56,0.1]
[1759121919219,3.19697725,210.57,210.56,0.1]
[1759121919627,3.91697725,210.57,210.56,0.1]
[1759121922433,29.91697725,210.57,210.56,0.1]
[1759121925141,29.19697725,210.57,210.56,0.1]
[1759121925837,29.91697725,210.57,210.56,0.1]
[1759121926037,34.76688501,210.57,210.56,0.1]
[1759121928848,39.51589958,210.57,210.56,0.1]
[1759121940547,38.79589958,210.57,210.56,0.1]
[1759121941259,39.46589958,210.57,210.56,0.1]
[1759121942560,38.79589958,210.57,210.56,0.1]
[1759121944951,34.04688501,210.57,210.56,0.79]
[1759121945147,38.79589958,210.57,210.56,0.79]
[1759121945849,38.79589958,210.57,210.56,0.1]
[1759121946243,38.79589958,210.57,210.56,0.79]
[1759121946756,38.79589958,210.57,210.56,0.1]
[1759121949849,34.04688501,210.57,210.56,0.79]
[1759121951563,30.84990776,210.57,210.56,0.79]
[1759121952058,34.04500539,210.57,210.56,0.79]
[1759121962150,34.04500539,210.57,210.56,0.1]
[1759121963253,39.46401996,210.57,210.56,0.1]
[1759121966368,40.97956845,210.57,210.56,0.1]
[1759121967953,77.23956845,210.57,210.56,0.1]
[1759121969062,76.56956845,210.57,210.56,0.1]
[1759121969264,40.30956845,210.57,210.56,0.1]
[1759121969463,76.56956845,210.57,210.56,0.1]
[1759121969663,77.23956845,210.57,210.56,0.1]
[1759121970877,40.97956845,210.57,210.56,0.1]
[1759121971178,77.23956845,210.57,210.56,0.1]
[1759121974977,76.56956845,210.57,210.56,0.1]
[1759121975175,77.23956845,210.57,210.56,0.1]
[1759121975673,76.56956845,210.57,210.56,0.1]
[1759121977456,77.23956845,210.57,210.56,0.1]
[1759121979062,40.97956845,210.57,210.56,0.1]
[1759121979267,77.23956845,210.57,210.56,0.1]
[1759121986085,76.56956845,210.57,210.56,0.1]
[1759121986997,77.23956845,210.57,210.56,0.1]
[1759121987284,89.11210489,210.57,210.54,0.1]
[1759121987462,7.19145712,210.56,210.54,0.1]
[1759121987663,65.45509763,210.55,210.54,0.1]
[1759121987874,68.03026779,210.55,210.54,0.1]
[1759121990992,76.52480277,210.55,210.54,0.1]
[1759121998394,72.77973347,210.55,210.54,0.1]
[1759121998896,72.10973347,210.55,210.54,0.76]
[1759121999089,35.84973347,210.55,210.54,0.76]
[1759122000883,31.10026779,210.55,210.54,0.76]
[1759122003700,5.10026779,210.55,210.54,5.50969127]
[1759122004407,3.19509763,210.55,210.54,5.50969127]
[1759122005400,29.99635949,210.61,210.54,5.50969127]
[1759122005586,5.50969127,210.58,210.55,0.66]
[1759122005786,3.19564733,210.57,210.55,0.66]
[1759122006101,3.19564733,210.56,210.55,0.66]
[1759122006600,5.50969127,210.58,210.55,0.66]
[1759122006904,3.19585852,210.57,210.55,0.66]
[1759122007107,5.50969127,210.58,210.55,0.66]
[1759122007285,3.19615614,210.57,210.55,5.40931959]
[1759122007486,5.50969127,210.58,210.56,0.66]
[1759122007693,3.19609442,210.57,210.56,0.66]
[1759122008282,8.04579832,210.57,210.56,0.66]
[1759122008685,3.19609442,210.57,210.56,0.66]
[1759122010402,7.94555802,210.57,210.56,0.66]
[1759122011012,4.7494636,210.57,210.56,0.66]
[1759122011203,7.94526644,210.57,210.56,0.66]
[1759122011410,3.19580284,210.57,210.56,5.40924012]
[1759122012006,3.19580284,210.57,210.56,0.66]
[1759122014416,3.19580284,210.57,210.56,5.40924012]
[1759122016308,40.23475355,210.63,210.56,17.28234042]
[1759122016497,3.19526718,210.62,210.57,0.68]
[1759122016820,3.19526718,210.61,210.57,0.68]
[1759122017020,3.19526718,210.6,210.57,0.68]
[1759122017319,3.19526718,210.59,210.57,0.68]
[1759122017498,3.19526718,210.62,210.58,16.62076169]
[1759122017700,3.19628962,210.64,210.59,0.68]
[1759122017907,3.19628962,210.63,210.59,0.68]
[1759122018214,11.9740021,210.64,210.59,6.19030204]
[1759122018418,11.9740021,210.64,210.6,0.68]
[1759122018616,11.9740021,210.64,210.61,4.74811262]
[1759122018798,11.9740021,210.64,210.62,0.68]
[1759122019408,11.9740021,210.64,210.61,4.74811262]
[1759122019607,11.9740021,210.64,210.63,0.68]
[1759122019812,15.16761861,210.64,210.63,0.68]
[1759122020004,11.9740021,210.64,210.63,0.68]
[1759122020995,11.9740021,210.64,210.62,0.72]
[1759122021615,12.6740021,210.64,210.6,0.72]
[1759122021809,0.7,210.63,210.6,0.72]
[1759122022004,3.19361651,210.67,210.6,0.72]
[1759122022323,5.51030204,210.62,210.6,0.72]
[1759122023023,0.7,210.61,210.57,4.74885036]
[1759122023233,0.7,210.6,210.54,0.82]
[1759122023416,26.0,210.58,210.54,0.1]
[1759122023723,2.21554849,210.57,210.54,0.1]
[1759122024310,1.90489797,210.56,210.54,0.1]
[1759122024707,26.7,210.55,210.54,0.1]
[1759122025110,31.44946568,210.55,210.54,0.1]
[1759122026304,67.68946568,210.55,210.54,0.1]
[1759122026921,62.24,210.55,210.54,0.1]
[1759122027323,26.0,210.55,210.54,0.1]
[1759122027516,30.74946568,210.55,210.54,0.1]
[1759122027716,31.44946568,210.55,210.54,0.1]
[1759122028022,32.96501417,210.55,210.54,0.1]
[1759122028215,33.81795207,210.55,210.54,0.1]
[1759122031215,70.05795207,210.55,210.54,0.1]
[1759122032234,66.98946568,210.55,210.54,0.1]
[1759122032423,30.74946568,210.55,210.54,0.1]
[1759122034019,32.65436365,210.55,210.54,0.1]
[1759122035015,27.90489797,210.55,210.54,0.1]
[1759122035436,32.65436365,210.55,210.54,0.1]
[1759122041129,32.65436365,210.55,210.54,0.82]
[1759122041434,27.90489797,210.55,210.54,0.82]
[1759122041620,27.90489797,210.55,210.54,0.1]
[1759122041806,32.65436365,210.55,210.54,0.1]
[1759122048735,27.90489797,210.55,210.54,0.1]
[1759122048941,26.0,210.55,210.54,0.1]
[1759122049117,27.90489797,210.55,210.54,0.1]
[1759122049448,32.65436365,210.55,210.54,0.1]
[1759122050457,33.35436365,210.55,210.54,0.1]
[1759122051126,69.59436365,210.55,210.54,0.1]
[1759122051321,72.79015829,210.55,210.54,0.1]
[1759122061031,13.59559401,210.54,210.53,0.1]
[1759122061246,16.79138865,210.54,210.53,0.1]
[1759122061449,17.46138865,210.54,210.53,0.1]
[1759122063756,22.21107992,210.54,210.53,0.1]
[1759122065462,22.21107992,210.54,210.52,0.1]
[1759122065670,55.41987504,210.53,210.52,0.1]
[1759122066036,56.08987504,210.53,210.52,0.1]
[1759122068066,60.83979191,210.53,210.52,0.1]
[1759122068264,62.74541589,210.53,210.52,0.1]
[1759122068750,48.47982188,210.53,210.52,0.1]
[1759122070845,46.11133549,210.53,210.52,0.81]
[1759122071072,48.47982188,210.53,210.52,0.81]
[1759122071369,12.21982188,210.53,210.52,0.81]
[1759122071554,48.47982188,210.53,210.52,0.81]
[1759122079154,48.47982188,210.53,210.52,0.1]
[1759122079471,49.13982188,210.53,210.52,0.1]
[1759122082460,62.73541589,210.53,210.52,0.1]
[1759122086580,146.39559401,210.52,210.5,0.1]
[1759122086764,53.05138865,210.51,210.5,0.1]
[1759122086965,53.75138865,210.51,210.5,0.1]
[1759122087264,55.65728502,210.51,210.5,0.1]
[1759122088393,57.17421517,210.51,210.5,0.1]
[1759122088593,61.92458332,210.51,210.5,0.1]
[1759122089628,25.66458332,210.51,210.5,0.1]
[1759122089785,61.92458332,210.51,210.5,0.1]
[1759122091293,25.66458332,210.51,210.5,0.1]
[1759122091593,61.92458332,210.51,210.5,0.1]
[1759122091790,59.70765317,210.51,210.5,0.1]
[1759122091986,61.92458332,210.51,210.5,0.1]
[1759122094584,25.66458332,210.51,210.5,0.1]
[1759122094792,61.92458332,210.51,210.5,0.1]
[1759122097137,61.92458332,210.51,210.49,0.1]
[1759122097323,139.99480175,210.5,210.49,0.1]
[1759122097789,137.901691,210.5,210.49,0.1]
[1759122098414,146.6481227,210.5,210.49,0.1]
[1759122101129,146.6481227,210.5,210.49,0.81]
[1759122101299,182.9081227,210.5,210.49,0.1]
[1759122101622,146.6481227,210.5,210.49,0.1]
[1759122101923,50.1081227,210.5,210.49,0.1]
[1759122104294,46.11228482,210.5,210.49,0.1]
[1759122104506,50.10626495,210.5,210.49,0.1]
[1759122104711,50.80626495,210.5,210.49,0.1]
[1759122105025,50.10626495,210.5,210.49,0.1]
[1759122106421,13.84626495,210.5,210.49,0.1]
[1759122106623,50.10626495,210.5,210.49,0.1]
[1759122108098,13.84626495,210.5,210.49,0.81]
[1759122108312,50.10626495,210.5,210.49,0.1]
[1759122108926,13.84626495,210.5,210.49,0.1]
[1759122109130,50.10626495,210.5,210.49,0.1]
[1759122109419,13.84626495,210.5,210.49,0.1]
[1759122109626,50.10626495,210.5,210.49,0.1]
[1759122110599,50.10626495,210.5,210.49,0.81]
[1759122110914,50.10626495,210.5,210.49,0.1]
[1759122111327,13.84626495,210.5,210.49,0.1]
[1759122111530,50.10626495,210.5,210.49,0.1]
[1759122113323,46.11228482,210.5,210.49,0.1]
[1759122114016,50.10626495,210.5,210.49,0.1]
[1759122114213,50.10626495,210.5,210.49,0.78]
[1759122114424,11.36921497,210.5,210.49,0.78]
[1759122114602,47.62921497,210.5,210.49,0.78]
[1759122119650,11.36921497,210.5,210.49,0.78]
[1759122119922,1.90589636,210.5,210.49,0.78]
[1759122120120,3.19579464,210.54,210.49,0.78]
[1759122120300,132.8,210.58,210.49,0.78]
[1759122120301,5.10078333,210.53,210.49,0.78]
[1759122120499,26.0,210.52,210.49,0.78]
[1759122122814,5.10078333,210.53,210.49,5.53077746]
[1759122123015,3.19579464,210.54,210.5,0.68]
[1759122123215,3.19579464,210.53,210.5,0.68]
[1759122123927,3.19579464,210.53,210.5,5.43058526]
[1759122124123,3.19579464,210.53,210.51,0.68]
[1759122124638,3.19579464,210.55,210.51,0.68]
[1759122125623,3.19579464,210.55,210.51,5.43015856]
[1759122125931,3.19579464,210.55,210.52,0.68]
[1759122126338,29.19579464,210.56,210.52,0.68]
[1759122127534,3.19579464,210.56,210.52,0.68]
[1759122127735,4.74856647,210.59,210.53,4.74991687]
[1759122127938,3.19579464,210.58,210.54,0.68]
[1759122128112,3.19579464,210.57,210.54,0.68]
[1759122128316,3.19579464,210.58,210.54,0.68]
[1759122128636,3.19579464,210.57,210.54,0.68]
[1759122129032,3.87579464,210.56,210.52,0.68]
[1759122129239,3.19579464,210.57,210.53,0.68]
[1759122129432,7.94619193,210.56,210.53,0.68]
[1759122129631,7.94619193,210.56,210.54,0.68]
[1759122129833,4.75039729,210.56,210.54,0.68]
[1759122130020,7.94619193,210.56,210.54,0.68]
[1759122130221,4.75039729,210.56,210.54,0.68]
[1759122132243,9.49967782,210.56,210.54,0.68]
[1759122132442,10.15967782,210.56,210.49,4.85071731]
[1759122132743,9.49967782,210.56,210.52,0.71]
[1759122132917,9.49967782,210.56,210.53,0.71]
[1759122133950,26.0,210.53,210.49,0.1]
[1759122134445,26.0,210.52,210.49,0.1]
[1759122134940,26.0,210.52,210.49,0.81]
[1759122135528,36.26135819,210.53,210.49,0.81]
[1759122136648,2.17693015,210.52,210.49,0.1]
[1759122136833,26.0,210.5,210.49,0.1]
[1759122137331,0.66,210.51,210.49,0.1]
[1759122137539,27.9052609,210.5,210.49,0.1]
[1759122137740,32.65585472,210.5,210.49,0.1]
[1759122142041,27.9052609,210.5,210.49,0.1]
[1759122144159,27.9052609,210.5,210.49,0.77]
[1759122144329,26.0,210.5,210.49,0.77]
[1759122149449,26.0,210.5,210.49,0.1]
[1759122150045,27.90517015,210.5,210.49,0.1]
[1759122150931,32.65576397,210.5,210.49,0.1]
[1759122151137,1.90517015,210.5,210.49,0.1]
[1759122151457,27.90517016,210.51,210.49,0.1]
[1759122152158,26.0,210.5,210.49,0.1]
[1759122152963,32.65556506,210.51,210.49,0.1]
[1759122154935,1.90517016,210.51,210.49,0.77]
[1759122155149,29.19294027,210.54,210.49,0.77]